[Event "Titled Tuesday Blitz March 28 Late 2023"]
[White "Khumalo, Keith"]
[Black "Pakleza, Zbigniew"]
[WhiteFideId "14319470"]
[BlackFideId "1119290"]
[WhiteElo "2056"]
[BlackElo "2410"]
[Result "1-0"]
[Round "10"]
[TimeControl "180+2"]
[Date "2023.03.28"]
[WhiteClock "0:02:21"]
[BlackClock "0:00:03"]

1. d4 {[%clk 0:02:57]}  d6 {[%clk 0:02:56]} 2. c4 {[%clk 0:02:56]}  e5 {[%clk 0:02:56]} 3. d5 {[%clk 0:02:56]}  f5 {[%clk 0:02:55]} 4. Nc3 {[%clk 0:02:57]}  Nf6 {[%clk 0:02:55]} 5. e4 {[%clk 0:02:58]}  fxe4 {[%clk 0:02:55]} 6. Nge2 {[%clk 0:02:58]}  Nbd7 {[%clk 0:02:56]} 7. Ng3 {[%clk 0:02:56]}  Nc5 {[%clk 0:02:56]} 8. Qc2 {[%clk 0:02:56]}  Nd3+ {[%clk 0:02:55]} 9. Bxd3 {[%clk 0:02:56]}  exd3 {[%clk 0:02:56]} 10. Qxd3 {[%clk 0:02:57]}  Be7 {[%clk 0:02:55]} 11. O-O {[%clk 0:02:57]}  O-O {[%clk 0:02:55]} 12. h3 {[%clk 0:02:56]}  a5 {[%clk 0:02:50]} 13. Nf5 {[%clk 0:02:55]}  b6 {[%clk 0:02:30]} 14. Re1 {[%clk 0:02:49]}  Rf7 {[%clk 0:02:13]} 15. Nxe7+ {[%clk 0:02:47]}  Rxe7 {[%clk 0:02:14]} 16. Bg5 {[%clk 0:02:47]}  Qf8 {[%clk 0:01:40]} 17. f4 {[%clk 0:02:45]}  exf4 {[%clk 0:01:26]} 18. Bxf4 {[%clk 0:02:44]}  Rf7 {[%clk 0:01:16]} 19. Bg5 {[%clk 0:02:39]}  Nh5 {[%clk 0:01:11]} 20. Rf1 {[%clk 0:02:35]}  Bf5 {[%clk 0:01:02]} 21. Qf3 {[%clk 0:02:29]}  Bg6 {[%clk 0:00:50]} 22. Qg4 {[%clk 0:02:29]}  Re8 {[%clk 0:00:47]} 23. Rxf7 {[%clk 0:02:29]}  Qxf7 {[%clk 0:00:48]} 24. Rf1 {[%clk 0:02:29]}  Nf6 {[%clk 0:00:37]} 25. Bxf6 {[%clk 0:02:29]}  gxf6 {[%clk 0:00:38]} 26. Qf4 {[%clk 0:02:26]}  Kg7 {[%clk 0:00:36]} 27. Nb5 {[%clk 0:02:26]}  Re4 {[%clk 0:00:32]} 28. Qc1 {[%clk 0:02:27]}  Qe7 {[%clk 0:00:30]} 29. b3 {[%clk 0:02:26]}  Re2 {[%clk 0:00:26]} 30. Nd4 {[%clk 0:02:26]}  Rxa2 {[%clk 0:00:12]} 31. Ne6+ {[%clk 0:02:26]}  Kf7 {[%clk 0:00:09]} 32. Qh6 {[%clk 0:02:25]}  Ke8 {[%clk 0:00:10]} 33. Re1 {[%clk 0:02:21]}  Kf7 {[%clk 0:00:03]} 34. Qg7+ {[%clk 0:02:21]} 1-0


[Site "https://www.chess.com"]

[Event "Titled Tuesday Blitz March 28 Late 2023"]
[White "Srinath, Rao S.V."]
[Black "Ashraf, Artin"]
[WhiteFideId "5028876"]
[BlackFideId "22514805"]
[WhiteElo "2196"]
[BlackElo "2188"]
[Result "0-1"]
[Round "10"]
[TimeControl "180+2"]
[Date "2023.03.28"]
[WhiteClock "0:00:23"]
[BlackClock "0:01:03"]

1. d4 {[%clk 0:03:00]}  d5 {[%clk 0:02:57]} 2. Nc3 {[%clk 0:03:01]}  Bf5 {[%clk 0:02:56]} 3. Bf4 {[%clk 0:03:01]}  a6 {[%clk 0:02:56]} 4. e3 {[%clk 0:03:00]}  e6 {[%clk 0:02:56]} 5. g4 {[%clk 0:02:58]}  Bg6 {[%clk 0:02:56]} 6. h4 {[%clk 0:02:58]}  h6 {[%clk 0:02:56]} 7. h5 {[%clk 0:02:57]}  Bh7 {[%clk 0:02:56]} 8. Nf3 {[%clk 0:02:58]}  c5 {[%clk 0:02:56]} 9. Ne5 {[%clk 0:02:54]}  Nc6 {[%clk 0:02:54]} 10. Qd2 {[%clk 0:02:50]}  Rc8 {[%clk 0:02:50]} 11. Bg2 {[%clk 0:02:36]}  Nf6 {[%clk 0:02:41]} 12. g5 {[%clk 0:02:30]}  hxg5 {[%clk 0:02:40]} 13. Bxg5 {[%clk 0:02:31]}  cxd4 {[%clk 0:02:38]} 14. exd4 {[%clk 0:02:31]}  Qb6 {[%clk 0:02:39]} 15. Nxc6 {[%clk 0:02:23]}  Rxc6 {[%clk 0:02:38]} 16. Na4 {[%clk 0:01:49]}  Qb5 {[%clk 0:02:23]} 17. b3 {[%clk 0:01:45]}  Rxc2 {[%clk 0:02:20]} 18. Bf1 {[%clk 0:01:37]}  Rxd2 {[%clk 0:01:41]} 19. Bxb5+ {[%clk 0:01:33]}  axb5 {[%clk 0:01:42]} 20. Bxd2 {[%clk 0:01:29]}  bxa4 {[%clk 0:01:41]} 21. bxa4 {[%clk 0:01:16]}  Be4 {[%clk 0:01:41]} 22. Rh3 {[%clk 0:01:12]}  Rxh5 {[%clk 0:01:40]} 23. Rxh5 {[%clk 0:01:13]}  Nxh5 {[%clk 0:01:41]} 24. Rc1 {[%clk 0:01:11]}  Kd7 {[%clk 0:01:40]} 25. a5 {[%clk 0:01:11]}  Bd3 {[%clk 0:01:33]} 26. Rc3 {[%clk 0:01:05]}  Ba6 {[%clk 0:01:31]} 27. Rh3 {[%clk 0:01:01]}  Nf6 {[%clk 0:01:30]} 28. Rh8 {[%clk 0:01:01]}  Be7 {[%clk 0:01:26]} 29. f3 {[%clk 0:01:00]}  Ne8 {[%clk 0:01:23]} 30. Kf2 {[%clk 0:00:57]}  Bf6 {[%clk 0:01:23]} 31. Be3 {[%clk 0:00:46]}  Nd6 {[%clk 0:01:22]} 32. Rf8 {[%clk 0:00:42]}  Ke7 {[%clk 0:01:21]} 33. Rh8 {[%clk 0:00:37]}  Nf5 {[%clk 0:01:20]} 34. Rc8 {[%clk 0:00:31]}  Nxd4 {[%clk 0:01:10]} 35. Rc7+ {[%clk 0:00:29]}  Ke8 {[%clk 0:01:10]} 36. Bf4 {[%clk 0:00:25]}  Nc6 {[%clk 0:01:08]} 37. Bd6 {[%clk 0:00:23]}  Bd8 {[%clk 0:01:03]} 0-1


[Site "https://www.chess.com"]

[Event "Titled Tuesday Blitz March 28 Late 2023"]
[White "angelgab3"]
[Black "Smirnov, Pavel"]
[BlackFideId "4123425"]
[WhiteElo "2570"]
[BlackElo "2519"]
[Result "1-0"]
[Round "10"]
[TimeControl "180+2"]
[Date "2023.03.28"]
[WhiteClock "0:00:07"]
[BlackClock "0:00:12"]

1. e4 {[%clk 0:03:00]}  e5 {[%clk 0:02:59]} 2. Nf3 {[%clk 0:03:01]}  Nc6 {[%clk 0:03:00]} 3. Bb5 {[%clk 0:03:01]}  a6 {[%clk 0:03:00]} 4. Ba4 {[%clk 0:03:02]}  Nf6 {[%clk 0:03:00]} 5. O-O {[%clk 0:03:02]}  Be7 {[%clk 0:03:00]} 6. Re1 {[%clk 0:03:03]}  b5 {[%clk 0:03:01]} 7. Bb3 {[%clk 0:03:03]}  O-O {[%clk 0:03:02]} 8. a4 {[%clk 0:03:01]}  b4 {[%clk 0:03:01]} 9. a5 {[%clk 0:03:00]}  d6 {[%clk 0:03:02]} 10. h3 {[%clk 0:03:00]}  Rb8 {[%clk 0:03:01]} 11. c3 {[%clk 0:02:59]}  Rb5 {[%clk 0:02:59]} 12. d4 {[%clk 0:02:55]}  bxc3 {[%clk 0:02:53]} 13. Nxc3 {[%clk 0:02:44]}  Rxa5 {[%clk 0:02:52]} 14. Rxa5 {[%clk 0:02:37]}  Nxa5 {[%clk 0:02:51]} 15. dxe5 {[%clk 0:02:38]}  dxe5 {[%clk 0:02:48]} 16. Nxe5 {[%clk 0:02:35]}  Qxd1 {[%clk 0:02:47]} 17. Bxd1 {[%clk 0:02:35]}  Bc5 {[%clk 0:02:48]} 18. Nd3 {[%clk 0:02:29]}  Bb6 {[%clk 0:02:47]} 19. e5 {[%clk 0:02:26]}  Bf5 {[%clk 0:02:43]} 20. exf6 {[%clk 0:02:12]}  Bxd3 {[%clk 0:02:42]} 21. Nd5 {[%clk 0:02:10]}  Bd4 {[%clk 0:02:37]} 22. fxg7 {[%clk 0:02:05]}  Bxg7 {[%clk 0:02:35]} 23. b4 {[%clk 0:01:49]}  Nc6 {[%clk 0:02:25]} 24. Bg5 {[%clk 0:01:24]}  Bc4 {[%clk 0:01:44]} 25. Nf6+ {[%clk 0:00:55]}  Kh8 {[%clk 0:01:42]} 26. Bf3 {[%clk 0:00:45]}  Nxb4 {[%clk 0:01:31]} 27. Re4 {[%clk 0:00:44]}  h6 {[%clk 0:01:15]} 28. Bh4 {[%clk 0:00:32]}  Nd5 {[%clk 0:01:15]} 29. Nd7 {[%clk 0:00:29]}  Bb5 {[%clk 0:01:11]} 30. Nxf8 {[%clk 0:00:29]}  Bxf8 {[%clk 0:01:12]} 31. Rd4 {[%clk 0:00:23]}  c6 {[%clk 0:00:46]} 32. Bxd5 {[%clk 0:00:20]}  cxd5 {[%clk 0:00:47]} 33. Bf6+ {[%clk 0:00:20]}  Bg7 {[%clk 0:00:46]} 34. Bxg7+ {[%clk 0:00:20]}  Kxg7 {[%clk 0:00:46]} 35. Rxd5 {[%clk 0:00:21]}  Kg6 {[%clk 0:00:45]} 36. g4 {[%clk 0:00:20]}  f6 {[%clk 0:00:45]} 37. Kh2 {[%clk 0:00:19]}  Kf7 {[%clk 0:00:46]} 38. Rd6 {[%clk 0:00:19]}  Ke7 {[%clk 0:00:45]} 39. Rb6 {[%clk 0:00:19]}  Kf7 {[%clk 0:00:42]} 40. Kg3 {[%clk 0:00:19]}  Kg6 {[%clk 0:00:42]} 41. Kf4 {[%clk 0:00:19]}  Kf7 {[%clk 0:00:42]} 42. h4 {[%clk 0:00:19]}  Bd3 {[%clk 0:00:42]} 43. Rb7+ {[%clk 0:00:19]}  Ke6 {[%clk 0:00:41]} 44. Ra7 {[%clk 0:00:18]}  Kd5 {[%clk 0:00:36]} 45. f3 {[%clk 0:00:17]}  Kc5 {[%clk 0:00:35]} 46. Rf7 {[%clk 0:00:16]}  a5 {[%clk 0:00:34]} 47. Rxf6 {[%clk 0:00:15]}  a4 {[%clk 0:00:34]} 48. Rf8 {[%clk 0:00:09]}  a3 {[%clk 0:00:30]} 49. Ra8 {[%clk 0:00:10]}  Kb4 {[%clk 0:00:30]} 50. g5 {[%clk 0:00:09]}  hxg5+ {[%clk 0:00:29]} 51. hxg5 {[%clk 0:00:10]}  Bb5 {[%clk 0:00:19]} 52. Rxa3 {[%clk 0:00:09]}  Kxa3 {[%clk 0:00:19]} 53. Ke5 {[%clk 0:00:08]}  Kb4 {[%clk 0:00:18]} 54. g6 {[%clk 0:00:07]}  Kc5 {[%clk 0:00:17]} 55. f4 {[%clk 0:00:07]}  Kc6 {[%clk 0:00:16]} 56. Ke6 {[%clk 0:00:06]}  Bc4+ {[%clk 0:00:12]} 57. Ke7 {[%clk 0:00:06]}  Kd5 {[%clk 0:00:12]} 58. f5 {[%clk 0:00:07]}  Ke5 {[%clk 0:00:12]} 59. f6 {[%clk 0:00:07]} 1-0


[Site "https://www.chess.com"]

[Event "Titled Tuesday Blitz March 28 Late 2023"]
[White "Wagner, Dennis"]
[Black "Vafin, Ayrat"]
[WhiteFideId "24650684"]
[BlackFideId "4146530"]
[WhiteElo "2470"]
[BlackElo "2317"]
[Result "1-0"]
[Round "10"]
[TimeControl "180+2"]
[Date "2023.03.28"]
[WhiteClock "0:00:18"]
[BlackClock "0:00:03"]

1. d4 {[%clk 0:03:00]}  d5 {[%clk 0:02:59]} 2. Nf3 {[%clk 0:03:00]}  Nf6 {[%clk 0:02:59]} 3. g3 {[%clk 0:02:59]}  b5 {[%clk 0:02:52]} 4. Bg2 {[%clk 0:02:55]}  Bb7 {[%clk 0:02:52]} 5. O-O {[%clk 0:02:56]}  Nbd7 {[%clk 0:02:53]} 6. Qd3 {[%clk 0:02:53]}  a6 {[%clk 0:02:44]} 7. Bf4 {[%clk 0:02:49]}  e6 {[%clk 0:02:43]} 8. Nbd2 {[%clk 0:02:47]}  Be7 {[%clk 0:02:39]} 9. Ne5 {[%clk 0:02:45]}  O-O {[%clk 0:02:35]} 10. e4 {[%clk 0:02:34]}  c5 {[%clk 0:02:18]} 11. Nxd7 {[%clk 0:02:33]}  Qxd7 {[%clk 0:02:10]} 12. dxc5 {[%clk 0:02:22]}  Bxc5 {[%clk 0:01:38]} 13. e5 {[%clk 0:02:22]}  Ne8 {[%clk 0:01:31]} 14. Nb3 {[%clk 0:02:07]}  Bb6 {[%clk 0:01:27]} 15. Be3 {[%clk 0:02:04]}  Bxe3 {[%clk 0:01:08]} 16. Qxe3 {[%clk 0:02:05]}  Nc7 {[%clk 0:01:08]} 17. a4 {[%clk 0:01:51]}  bxa4 {[%clk 0:01:04]} 18. Nc5 {[%clk 0:01:37]}  Qb5 {[%clk 0:00:57]} 19. c4 {[%clk 0:01:35]}  Qb6 {[%clk 0:00:50]} 20. Nxa4 {[%clk 0:01:17]}  Qxe3 {[%clk 0:00:50]} 21. fxe3 {[%clk 0:01:18]}  Rab8 {[%clk 0:00:42]} 22. c5 {[%clk 0:01:18]}  d4 {[%clk 0:00:26]} 23. c6 {[%clk 0:01:14]}  Bc8 {[%clk 0:00:25]} 24. exd4 {[%clk 0:01:13]}  Rb4 {[%clk 0:00:24]} 25. Rfd1 {[%clk 0:01:12]}  Rc4 {[%clk 0:00:19]} 26. Nb6 {[%clk 0:01:06]}  Rb4 {[%clk 0:00:19]} 27. Nd7 {[%clk 0:01:01]}  Bxd7 {[%clk 0:00:18]} 28. cxd7 {[%clk 0:01:01]}  Rd8 {[%clk 0:00:18]} 29. Bc6 {[%clk 0:01:00]}  Kf8 {[%clk 0:00:14]} 30. Rd2 {[%clk 0:00:56]}  Ke7 {[%clk 0:00:13]} 31. Rc1 {[%clk 0:00:56]}  Nd5 {[%clk 0:00:12]} 32. Kf2 {[%clk 0:00:54]}  Nb6 {[%clk 0:00:09]} 33. Ra1 {[%clk 0:00:47]}  Nxd7 {[%clk 0:00:07]} 34. Rxa6 {[%clk 0:00:48]}  Rb6 {[%clk 0:00:06]} 35. Rxb6 {[%clk 0:00:46]}  Nxb6 {[%clk 0:00:07]} 36. Bb5 {[%clk 0:00:43]}  Rd5 {[%clk 0:00:06]} 37. Be2 {[%clk 0:00:41]}  Rd8 {[%clk 0:00:04]} 38. b4 {[%clk 0:00:36]}  Nd5 {[%clk 0:00:04]} 39. b5 {[%clk 0:00:36]}  Rc8 {[%clk 0:00:04]} 40. Rb2 {[%clk 0:00:35]}  Rb8 {[%clk 0:00:04]} 41. Rc2 {[%clk 0:00:34]}  Kd7 {[%clk 0:00:04]} 42. Rc5 {[%clk 0:00:34]}  Nc7 {[%clk 0:00:03]} 43. Bc4 {[%clk 0:00:32]}  Rb6 {[%clk 0:00:03]} 44. h4 {[%clk 0:00:32]}  Rb8 {[%clk 0:00:03]} 45. Kf3 {[%clk 0:00:31]}  Na8 {[%clk 0:00:03]} 46. Rc6 {[%clk 0:00:29]}  Nb6 {[%clk 0:00:03]} 47. Bb3 {[%clk 0:00:27]}  Nc8 {[%clk 0:00:02]} 48. Ba4 {[%clk 0:00:25]}  Ne7 {[%clk 0:00:02]} 49. Ra6 {[%clk 0:00:23]}  Kd8 {[%clk 0:00:02]} 50. Rd6+ {[%clk 0:00:20]}  Kc7 {[%clk 0:00:01]} 51. b6+ {[%clk 0:00:20]}  Rxb6 {[%clk 0:00:01]} 52. Rd7+ {[%clk 0:00:20]}  Kc8 {[%clk 0:00:02]} 53. Rxe7 {[%clk 0:00:21]}  Rb4 {[%clk 0:00:03]} 54. Bd7+ {[%clk 0:00:18]}  Kd8 {[%clk 0:00:03]} 55. Rxf7 {[%clk 0:00:19]}  Rxd4 {[%clk 0:00:03]} 56. Bxe6 {[%clk 0:00:19]}  Rd3+ {[%clk 0:00:03]} 57. Kf4 {[%clk 0:00:18]}  Rd1 {[%clk 0:00:04]} 58. Rxg7 {[%clk 0:00:18]}  Ke8 {[%clk 0:00:04]} 59. g4 {[%clk 0:00:18]}  Kf8 {[%clk 0:00:05]} 60. Rxh7 {[%clk 0:00:18]}  Rf1+ {[%clk 0:00:05]} 61. Kg5 {[%clk 0:00:18]}  Re1 {[%clk 0:00:04]} 62. Kf6 {[%clk 0:00:17]}  Rf1+ {[%clk 0:00:04]} 63. Bf5 {[%clk 0:00:18]}  Ke8 {[%clk 0:00:03]} 64. Rh8# {[%clk 0:00:18]} 1-0


[Site "https://www.chess.com"]

[Event "Titled Tuesday Blitz March 28 Late 2023"]
[White "Mekhitarian, Krikor Sevag"]
[Black "Vaglio Munoz, Jaime"]
[WhiteFideId "2107660"]
[BlackFideId "6500145"]
[WhiteElo "2604"]
[BlackElo "2199"]
[Result "1-0"]
[Round "10"]
[TimeControl "180+2"]
[Date "2023.03.28"]
[WhiteClock "0:00:06"]
[BlackClock "0:00:02"]

1. Nf3 {[%clk 0:03:00]}  d6 {[%clk 0:03:00]} 2. d4 {[%clk 0:02:59]}  Nf6 {[%clk 0:02:59]} 3. c4 {[%clk 0:02:59]}  g6 {[%clk 0:03:00]} 4. Nc3 {[%clk 0:03:00]}  Bf5 {[%clk 0:03:00]} 5. Nh4 {[%clk 0:02:58]}  Bd7 {[%clk 0:03:00]} 6. e4 {[%clk 0:02:58]}  Bg7 {[%clk 0:02:59]} 7. h3 {[%clk 0:02:57]}  e5 {[%clk 0:02:56]} 8. Nf3 {[%clk 0:02:55]}  exd4 {[%clk 0:02:56]} 9. Nxd4 {[%clk 0:02:55]}  O-O {[%clk 0:02:57]} 10. Bd3 {[%clk 0:02:52]}  Re8 {[%clk 0:02:58]} 11. O-O {[%clk 0:02:52]}  Nc6 {[%clk 0:02:50]} 12. Be3 {[%clk 0:02:47]}  Ng4 {[%clk 0:02:39]} 13. hxg4 {[%clk 0:02:40]}  Nxd4 {[%clk 0:02:39]} 14. f3 {[%clk 0:02:33]}  c5 {[%clk 0:02:09]} 15. Qd2 {[%clk 0:02:31]}  Qh4 {[%clk 0:02:00]} 16. Bf2 {[%clk 0:02:12]}  Qd8 {[%clk 0:01:47]} 17. Ne2 {[%clk 0:02:11]}  Nc6 {[%clk 0:01:44]} 18. Rad1 {[%clk 0:02:10]}  Be6 {[%clk 0:01:43]} 19. b3 {[%clk 0:02:10]}  Qe7 {[%clk 0:01:43]} 20. Bb1 {[%clk 0:02:00]}  Rad8 {[%clk 0:01:43]} 21. Rfe1 {[%clk 0:01:59]}  Be5 {[%clk 0:01:22]} 22. g5 {[%clk 0:01:47]}  Bg7 {[%clk 0:01:03]} 23. Be3 {[%clk 0:01:35]}  Ne5 {[%clk 0:00:48]} 24. Nc3 {[%clk 0:01:20]}  a6 {[%clk 0:00:41]} 25. Nd5 {[%clk 0:01:19]}  Bxd5 {[%clk 0:00:40]} 26. exd5 {[%clk 0:01:15]}  Qc7 {[%clk 0:00:35]} 27. Bd3 {[%clk 0:00:53]}  Nxd3 {[%clk 0:00:29]} 28. Qxd3 {[%clk 0:00:54]}  Re7 {[%clk 0:00:23]} 29. Bf4 {[%clk 0:00:52]}  Rde8 {[%clk 0:00:22]} 30. Rxe7 {[%clk 0:00:48]}  Rxe7 {[%clk 0:00:19]} 31. Kf1 {[%clk 0:00:48]}  Be5 {[%clk 0:00:19]} 32. Bd2 {[%clk 0:00:43]}  Qd7 {[%clk 0:00:15]} 33. Re1 {[%clk 0:00:43]}  f5 {[%clk 0:00:11]} 34. gxf6 {[%clk 0:00:33]}  Bxf6 {[%clk 0:00:11]} 35. Rxe7 {[%clk 0:00:31]}  Qxe7 {[%clk 0:00:11]} 36. Bf4 {[%clk 0:00:32]}  Be5 {[%clk 0:00:11]} 37. Qe4 {[%clk 0:00:31]}  Kf7 {[%clk 0:00:10]} 38. Bxe5 {[%clk 0:00:30]}  Qxe5 {[%clk 0:00:10]} 39. Qxe5 {[%clk 0:00:30]}  dxe5 {[%clk 0:00:11]} 40. Kf2 {[%clk 0:00:17]}  Kf6 {[%clk 0:00:06]} 41. Ke3 {[%clk 0:00:11]}  h5 {[%clk 0:00:05]} 42. g3 {[%clk 0:00:11]}  Kf5 {[%clk 0:00:02]} 43. Kf2 {[%clk 0:00:08]}  a5 {[%clk 0:00:01]} 44. Ke3 {[%clk 0:00:07]}  b6 {[%clk 0:00:02]} 45. Kd3 {[%clk 0:00:06]}  g5 {[%clk 0:00:02]} 46. Ke3 {[%clk 0:00:07]}  Kf6 {[%clk 0:00:01]} 47. Ke4 {[%clk 0:00:06]}  h4 {[%clk 0:00:02]} 48. gxh4 {[%clk 0:00:07]}  gxh4 {[%clk 0:00:03]} 49. Ke3 {[%clk 0:00:04]}  h3 {[%clk 0:00:02]} 50. Kf2 {[%clk 0:00:05]}  Kf5 {[%clk 0:00:02]} 51. Kg3 {[%clk 0:00:05]}  Kf6 {[%clk 0:00:01]} 52. Kxh3 {[%clk 0:00:05]}  Kg5 {[%clk 0:00:01]} 53. Kg3 {[%clk 0:00:06]}  Kf5 {[%clk 0:00:02]} 54. Kf2 {[%clk 0:00:06]} 1-0


[Site "https://www.chess.com"]

[Event "Titled Tuesday Blitz March 28 Late 2023"]
[White "Baskakov, Egor"]
[Black "Feng, Eric"]
[WhiteFideId "24197866"]
[BlackFideId "30952590"]
[WhiteElo "2212"]
[BlackElo "1785"]
[Result "0-1"]
[Round "10"]
[TimeControl "180+2"]
[Date "2023.03.28"]
[WhiteClock "0:00:19"]
[BlackClock "0:00:21"]

1. e4 {[%clk 0:03:00]}  c6 {[%clk 0:02:58]} 2. d4 {[%clk 0:03:00]}  d5 {[%clk 0:02:58]} 3. e5 {[%clk 0:03:01]}  c5 {[%clk 0:02:56]} 4. c4 {[%clk 0:03:00]}  cxd4 {[%clk 0:02:50]} 5. Nf3 {[%clk 0:03:00]}  Nc6 {[%clk 0:02:49]} 6. Nxd4 {[%clk 0:03:00]}  e6 {[%clk 0:02:49]} 7. Nc3 {[%clk 0:02:59]}  Bc5 {[%clk 0:02:49]} 8. Nxc6 {[%clk 0:02:59]}  bxc6 {[%clk 0:02:50]} 9. cxd5 {[%clk 0:02:59]}  cxd5 {[%clk 0:02:51]} 10. Bd3 {[%clk 0:02:59]}  Ne7 {[%clk 0:02:51]} 11. O-O {[%clk 0:03:00]}  Ng6 {[%clk 0:02:52]} 12. Qe2 {[%clk 0:02:57]}  O-O {[%clk 0:02:52]} 13. Kh1 {[%clk 0:02:57]}  f5 {[%clk 0:02:46]} 14. exf6 {[%clk 0:02:54]}  Qxf6 {[%clk 0:02:47]} 15. f4 {[%clk 0:02:54]}  Bb7 {[%clk 0:02:44]} 16. Bd2 {[%clk 0:02:53]}  Rae8 {[%clk 0:02:44]} 17. Rae1 {[%clk 0:02:51]}  Bd6 {[%clk 0:02:08]} 18. g3 {[%clk 0:02:37]}  Rf7 {[%clk 0:01:51]} 19. Qh5 {[%clk 0:02:17]}  Rfe7 {[%clk 0:01:38]} 20. Nb5 {[%clk 0:01:58]}  Bb8 {[%clk 0:01:31]} 21. Kg1 {[%clk 0:01:50]}  a6 {[%clk 0:01:31]} 22. Bc3 {[%clk 0:01:41]}  Qf7 {[%clk 0:01:23]} 23. f5 {[%clk 0:01:10]}  exf5 {[%clk 0:00:56]} 24. Rxe7 {[%clk 0:01:10]}  Rxe7 {[%clk 0:00:48]} 25. Nd4 {[%clk 0:00:54]}  Ba7 {[%clk 0:00:47]} 26. Bxf5 {[%clk 0:00:42]}  Qf6 {[%clk 0:00:44]} 27. Bxg6 {[%clk 0:00:37]}  Bxd4+ {[%clk 0:00:44]} 28. Kg2 {[%clk 0:00:37]}  hxg6 {[%clk 0:00:37]} 29. Qg4 {[%clk 0:00:31]}  Bxc3 {[%clk 0:00:30]} 30. Rxf6 {[%clk 0:00:31]}  Bxf6 {[%clk 0:00:31]} 31. Qxg6 {[%clk 0:00:28]}  d4+ {[%clk 0:00:30]} 32. Kh3 {[%clk 0:00:26]}  Be4 {[%clk 0:00:26]} 33. Qg4 {[%clk 0:00:21]}  d3 {[%clk 0:00:24]} 34. Qc8+ {[%clk 0:00:19]}  Kh7 {[%clk 0:00:22]} 35. Qd8 {[%clk 0:00:19]}  Bf5+ {[%clk 0:00:21]} 0-1


[Site "https://www.chess.com"]

[Event "Titled Tuesday Blitz March 28 Late 2023"]
[White "Rytenko, Vsevolod"]
[Black "Urazayev, Arystanbek"]
[WhiteFideId "14133040"]
[BlackFideId "13709810"]
[WhiteElo "2262"]
[BlackElo "2479"]
[Result "0-1"]
[Round "10"]
[TimeControl "180+2"]
[Date "2023.03.28"]
[WhiteClock "0:00:05"]
[BlackClock "0:01:07"]

1. d4 {[%clk 0:03:00]}  Nf6 {[%clk 0:02:53]} 2. Nf3 {[%clk 0:02:57]}  g6 {[%clk 0:02:53]} 3. c4 {[%clk 0:02:56]}  Bg7 {[%clk 0:02:54]} 4. Nc3 {[%clk 0:02:57]}  O-O {[%clk 0:02:54]} 5. e4 {[%clk 0:02:57]}  d6 {[%clk 0:02:55]} 6. Be2 {[%clk 0:02:57]}  e5 {[%clk 0:02:56]} 7. d5 {[%clk 0:02:57]}  Na6 {[%clk 0:02:55]} 8. Be3 {[%clk 0:02:58]}  Nc5 {[%clk 0:02:55]} 9. Nd2 {[%clk 0:02:58]}  a5 {[%clk 0:02:55]} 10. b3 {[%clk 0:02:50]}  c6 {[%clk 0:02:56]} 11. a3 {[%clk 0:02:46]}  cxd5 {[%clk 0:02:55]} 12. cxd5 {[%clk 0:02:45]}  Bd7 {[%clk 0:02:50]} 13. O-O {[%clk 0:02:42]}  Rc8 {[%clk 0:02:40]} 14. Rc1 {[%clk 0:02:37]}  Ne8 {[%clk 0:02:36]} 15. b4 {[%clk 0:02:36]}  Na6 {[%clk 0:02:34]} 16. Qb3 {[%clk 0:02:29]}  f5 {[%clk 0:02:32]} 17. f3 {[%clk 0:02:26]}  axb4 {[%clk 0:02:21]} 18. axb4 {[%clk 0:02:26]}  Nf6 {[%clk 0:02:20]} 19. Qa3 {[%clk 0:02:16]}  Ra8 {[%clk 0:02:09]} 20. Qb2 {[%clk 0:02:12]}  Nh5 {[%clk 0:02:07]} 21. Nc4 {[%clk 0:01:51]}  Qe7 {[%clk 0:02:04]} 22. Nb6 {[%clk 0:01:50]}  Rad8 {[%clk 0:01:59]} 23. Nxd7 {[%clk 0:01:50]}  Rxd7 {[%clk 0:01:58]} 24. Na4 {[%clk 0:01:38]}  Nf4 {[%clk 0:01:55]} 25. b5 {[%clk 0:01:36]}  Qg5 {[%clk 0:01:50]} 26. Bxf4 {[%clk 0:01:08]}  exf4 {[%clk 0:01:50]} 27. Qd2 {[%clk 0:00:53]}  Nc5 {[%clk 0:01:51]} 28. Nxc5 {[%clk 0:00:51]}  dxc5 {[%clk 0:01:51]} 29. Rxc5 {[%clk 0:00:49]}  fxe4 {[%clk 0:01:43]} 30. fxe4 {[%clk 0:00:46]}  Qe5 {[%clk 0:01:41]} 31. Rc4 {[%clk 0:00:37]}  h5 {[%clk 0:01:41]} 32. Kh1 {[%clk 0:00:32]}  Kh7 {[%clk 0:01:41]} 33. b6 {[%clk 0:00:31]}  Rd6 {[%clk 0:01:41]} 34. Rb1 {[%clk 0:00:28]}  Ra8 {[%clk 0:01:30]} 35. Bf3 {[%clk 0:00:25]}  Ra1 {[%clk 0:01:28]} 36. Rcc1 {[%clk 0:00:23]}  Ra3 {[%clk 0:01:26]} 37. Rc7 {[%clk 0:00:21]}  Ra1 {[%clk 0:01:22]} 38. Qc2 {[%clk 0:00:20]}  Rxb6 {[%clk 0:01:18]} 39. Rc1 {[%clk 0:00:05]}  Rxc1+ {[%clk 0:01:08]} 40. Qxc1 {[%clk 0:00:05]}  Qxc7 {[%clk 0:01:07]} 0-1


[Site "https://www.chess.com"]